fUST/lending_fUST_20250817
["ID","MTS","AMOUNT","RATE_DAILY","PERIOD"]
[379911432,1755438649756,-202.50774572,0.00019739,2]
[379911434,1755438649766,-151.0,0.00019739,2]
[379911436,1755438649775,-480.0,0.00019739,2]
[379911438,1755438649785,-151.0,0.00019739,2]
[379911440,1755438649794,-684.232308,0.00019739,2]
[379911442,1755438649803,-684.232308,0.00019739,2]
[379911444,1755438649813,-480.0,0.00019739,2]
[379911446,1755438649823,-480.0,0.00019739,2]
[379911448,1755438649832,-253.51995032,0.00019739,2]
[379911450,1755438649841,-480.0,0.00019739,2]
[379911452,1755438649851,-480.0,0.00019739,2]
[379911454,1755438649861,-480.0,0.00019739,2]
[379911456,1755438649872,-480.0,0.00019739,2]
[379911458,1755438649883,-244.746324,0.00019739,2]
[379911460,1755438649894,-480.0,0.00019739,2]
[379911462,1755438649903,-151.0,0.00019739,2]
[379911464,1755438649913,-430.09837791,0.00019739,2]
[379911466,1755438649922,-151.0,0.00019739,2]
[379911468,1755438649933,-1033.65,0.00019739,2]
[379911470,1755438649942,-151.0,0.00019739,2]
[379911472,1755438649951,-872.76,0.00019739,2]
[379911474,1755438649961,-151.0,0.00019739,2]
[379911476,1755438649971,-151.0,0.00019739,2]
[379911478,1755438649980,-480.0,0.00019739,2]
[379911480,1755438649989,-480.0,0.00019739,2]
[379911482,1755438649999,-5101.42,0.00019739,2]
[379911484,1755438650008,-612.08,0.00019739,2]
[379911486,1755438650017,-190.194078,0.00019739,2]
[379911488,1755438650026,-276.279238,0.00019739,2]
[379911490,1755438650036,-556.22585826,0.00019739,2]
[379911492,1755438650050,-1132.39414174,0.00019739,2]
[379911494,1755438650059,-875.22,0.00019739,2]
[379911496,1755438650068,-420.0,0.00019739,2]
[379911498,1755438650078,-480.0,0.00019802,2]
[379911500,1755438650087,-6783.17,0.00019802,2]
[379911502,1755438650096,-191.99844287,0.00019842,2]
[379911504,1755438650106,-480.0,0.00019842,2]
[379911506,1755438650115,-480.0,0.00019842,2]
[379911508,1755438650125,-616.23048361,0.00019844,2]
[379911510,1755438650134,-21.32479348,0.00019844,2]
[379911512,1755438650146,-1046.90520652,0.00019844,2]
[379911514,1755438650155,-101.11469556,0.00019844,2]
[379911516,1755438650167,-323.91960816,0.00019844,2]
[379911519,1755438650177,-480.0,0.00019844,2]
[379911521,1755438650186,-480.0,0.00019844,2]
[379911523,1755438650196,-1223.2,0.00019844,2]
[379911524,1755438650205,-523.03210746,0.00019844,2]
[379911534,1755438650289,-715.6763441,0.00018717,2]
[379911537,1755438650300,-3055.09211854,0.00018717,2]
[379911539,1755438650311,-11305.10431155,0.00018717,2]
[379911541,1755438650321,-673.74,0.00019191,2]
[379911543,1755438650330,-151.0,0.00019381,2]
[379911545,1755438650339,-151.0,0.00019381,2]
[379911547,1755438650349,-151.0,0.00019381,2]
[379911548,1755438650359,-673.74,0.00019465,2]
[379911550,1755438650368,-2105.80870262,0.00019601,2]
[379911552,1755438650379,-673.74,0.00019739,2]
[379911554,1755438650388,-1055.17789254,0.00019844,2]
[379911556,1755438650398,-1173.15,0.00019844,2]
[379911558,1755438650407,-480.0,0.00019844,2]
[379911560,1755438650416,-3387.28,0.00019844,2]
[379911562,1755438650425,-559.3,0.00019844,2]
[379911564,1755438650434,-713.3,0.00019844,2]
[379911566,1755438650444,-431.9864578,0.00019846,2]
[379911568,1755438650453,-431.9864578,0.00019846,2]
[379911570,1755438650464,-160.0,0.00019858,2]
[379911572,1755438650473,-160.0,0.00019858,2]
[379911574,1755438650483,-232.1512529,0.00019858,2]
[379911576,1755438650492,-160.0,0.00019858,2]
[379911578,1755438650501,-417.15472785,0.00019858,2]
[379911580,1755438650511,-375.77065697,0.00019858,2]
[379911582,1755438650520,-160.0,0.00019858,2]
[379911584,1755438650529,-160.0,0.00019858,2]
[379911586,1755438650538,-160.0,0.00019858,2]
[379911588,1755438650547,-216.83204348,0.00019858,2]
[379911590,1755438650557,-12682.46447135,0.00019858,2]
[379911592,1755438650566,-160.0,0.00019858,2]
[379911594,1755438650575,-843.71309931,0.00019858,2]
[379911596,1755438650584,-215.71995163,0.00019858,2]
[379911598,1755438650593,-528.48506731,0.00019858,2]
[379911600,1755438650602,-160.0,0.00019858,2]
[379911602,1755438650611,-160.0,0.00019861,2]
[379911604,1755438650621,-160.0,0.00019861,2]
[379911606,1755438650630,-161.887942,0.00019863,2]
[379911608,1755438650640,-151.0,0.00019874,2]
[379911610,1755438650649,-194.994437,0.00019874,2]
[379911612,1755438650658,-151.0,0.00019874,2]
[379911614,1755438650668,-151.0,0.00019874,2]
[379911616,1755438650677,-151.0,0.00019874,2]
[379911618,1755438650686,-190.295796,0.00019874,2]
[379911620,1755438650696,-190.295796,0.00019874,2]
[379911622,1755438650705,-431.9864578,0.00019889,2]
[379911624,1755438650714,-431.9864578,0.00019889,2]
[379911626,1755438650723,-431.9864578,0.00019889,2]
[379911649,1755438650940,-168.0,0.00019895,2]
[379911651,1755438650950,-151.0,0.00019899,2]
[379911654,1755438650961,-151.0,0.00019899,2]
[379911655,1755438650970,-2265.51,0.00019899,2]
[379911657,1755438650979,-6905.04100785,0.000199,2]
[379911659,1755438650989,-1500.0,0.00019968,2]
[379911661,1755438650998,-1500.0,0.00019968,2]
[379911663,1755438651007,-427.99618631,0.00019968,2]
[379911666,1755438651018,-572.00381369,0.00019968,2]
[379911668,1755438651028,-27.34618631,0.00019968,2]
[379911694,1755438651271,-151.0,0.00019381,2]
[379911696,1755438651281,-151.0,0.00019381,2]
[379911698,1755438651290,-151.0,0.00019381,2]
[379911700,1755438651299,-151.0,0.00019381,2]
[379911702,1755438651309,-151.0,0.00019381,2]
[379911704,1755438651318,-51.64838715,0.00019529,2]
[379911707,1755438651330,-548.35161285,0.00019529,2]
[379911709,1755438651339,-12743.72756292,0.00019844,2]
[379911738,1755438651613,-2332.14521125,0.00019844,2]
[379911740,1755438651622,-173.45478924,0.00019968,2]
[379911782,1755438655628,-151.97667363,0.00018471,2]
[379911795,1755438663056,-177.9260266,0.00018286,2]
[379911796,1755438665103,-247.5826739,0.00018286,2]
[379911797,1755438668192,-155.939263,0.00018286,2]
[379911798,1755438670260,-265.04319423,0.00018286,2]
[379911799,1755438672850,-276.10380504,0.00018286,2]
[379911800,1755438678243,-172.10771669,0.00018286,2]
[379911801,1755438680852,-196.29181219,0.00018286,2]
[379911802,1755438684633,-298.39990921,0.00018286,2]
[379911803,1755438686530,-285.70935433,0.00018286,2]
[379911804,1755438687834,-277.40325576,0.00018286,2]
[379911805,1755438689276,-279.19511293,0.00018286,2]
[379911806,1755438692090,-208.54521185,0.00018286,2]
[379911807,1755438693611,-301.76915546,0.00018286,2]
[379911808,1755438696183,-360.77565357,0.00018286,2]
[379911809,1755438701662,-270.30477173,0.00018286,2]
[379911810,1755438708377,-306.18744044,0.00018286,2]
[379911811,1755438710935,-282.50411493,0.00018286,2]
[379911812,1755438712862,-241.59045746,0.00018286,2]
[379911813,1755438714299,-396.62107068,0.00018286,2]
[379911818,1755438751172,-191.14157386,0.00017504,2]
[379911819,1755438753285,-172.82974937,0.00017504,2]
[379911820,1755438754749,-288.25799454,0.00017504,2]
[379911821,1755438754882,288.0,0.00028767,120]
[379911822,1755438756193,-382.82525639,0.00017504,2]
[379911823,1755438761096,-253.03501115,0.00017504,2]
[379911824,1755438762497,-217.4410899,0.00017504,2]
[379911825,1755438764491,-251.92939213,0.00017504,2]
[379911826,1755438766031,-479.69262674,0.00017504,2]
[379911827,1755438768592,-181.08103901,0.00017504,2]
[379911828,1755438770791,355.18454811,0.000175,2]
[379911829,1755438771352,-186.63622741,0.00017504,2]
[379911830,1755438773799,-165.02603602,0.00017504,2]
[379911831,1755438776400,-215.32730543,0.00017504,2]
[379911832,1755438777862,-312.13297513,0.00017504,2]
[379911833,1755438780304,-208.04192497,0.00017504,2]
[379911834,1755438783007,-180.92430959,0.00017503,2]
[379911835,1755438785546,-119.07569041,0.00017503,2]
[379911836,1755438785621,-7271.50849524,0.00017504,2]
[379911837,1755438785773,-270.18199684,0.00017504,2]
[379911838,1755438785788,-10000.0,0.00017504,2]
[379911839,1755438785904,-10000.0,0.00017504,2]
[379911840,1755438786142,-10000.0,0.00017504,2]
[379911841,1755438786358,-10000.0,0.00017504,2]
[379911842,1755438786569,-10000.0,0.00017504,2]
[379911843,1755438786738,-10000.0,0.00017504,2]
[379911844,1755438786918,-10000.0,0.00017504,2]
[379911845,1755438787110,-10000.0,0.00017504,2]
[379911846,1755438787340,-10000.0,0.00017504,2]
[379911847,1755438787555,-10000.0,0.00017504,2]
[379911848,1755438788442,-296.2387423,0.00017504,2]
[379911849,1755438789785,-10000.0,0.00017504,2]
[379911850,1755438790492,150.0,0.00015514,30]
[379911851,1755438790535,-10000.0,0.00017504,2]
[379911852,1755438790719,-10000.0,0.00017504,2]
[379911853,1755438790931,-1199.94225213,0.00017504,2]
[379911854,1755438790958,-7600.11549574,0.00017504,2]
[379911855,1755438791098,-173.48406566,0.00017853,2]
[379911856,1755438791128,187.66,0.00016252,30]
[379911857,1755438791163,-26.51593434,0.00017853,2]
[379911858,1755438791194,-200.0,0.00017853,2]
[379911859,1755438791224,-200.0,0.00017853,2]
[379911860,1755438791254,-200.0,0.00017853,2]
[379911861,1755438791444,-200.0,0.00017853,2]
[379911862,1755438791478,-200.0,0.00017853,2]
[379911863,1755438791509,-200.0,0.00017853,2]
[379911864,1755438791541,-200.0,0.00017853,2]
[379911865,1755438791572,-200.0,0.00017853,2]
[379911866,1755438791603,-200.0,0.00017853,2]
[379911867,1755438791632,-600.0,0.00017853,2]
[379911868,1755438792216,281.48,0.00016991,30]
[379911869,1755438792320,375.31,0.0001773,30]
[379911870,1755438792690,469.14,0.00018469,30]
[379911871,1755438793362,562.97,0.00019207,30]
[379911872,1755438793775,656.79,0.00019946,30]
[379911873,1755438794312,750.62,0.00020685,30]
[379911874,1755438813882,-334.6202925,0.0001847,2]
[379911875,1755438817656,-219.98778268,0.0001847,2]
[379911876,1755438819088,-395.6458207,0.0001847,2]
[379911877,1755438821285,-168.03128815,0.0001847,2]
[379911878,1755438824303,-81.71481597,0.0001847,2]
[379911879,1755438824328,-218.28518403,0.0001847,2]
[379911880,1755438825881,-198.66499897,0.0001847,2]
[379911881,1755438828009,-83.049817,0.0001847,2]
[379911882,1755438828035,-72.17228508,0.0001847,2]
[379911883,1755438829663,-300.0,0.0001847,2]
[379911884,1755438831721,-127.82771492,0.0001847,2]
[379911885,1755438831746,-208.83805943,0.0001847,2]
[379911886,1755438833219,-291.16194057,0.0001847,2]
[379911887,1755438833244,-19.55721349,0.0001847,2]
[379911888,1755438834722,-480.44278651,0.0001847,2]
[379911889,1755438834745,-45.57505859,0.0001847,2]
[379911890,1755438839573,-288.09008906,0.0001847,2]
[379911891,1755438841629,-166.33485235,0.0001847,2]
[379911892,1755438841654,-367.98205272,0.0001847,2]
[379911893,1755438843216,-132.01794728,0.0001847,2]
[379911894,1755438843241,-122.75168933,0.0001847,2]
[379911895,1755438845014,-163.04757928,0.00018469,2]
[379911896,1755438847053,-136.95242072,0.00018469,2]
[379911897,1755438847076,-263.35597428,0.0001847,2]
[379911898,1755438849149,-113.89233639,0.0001847,2]
[379911899,1755438849177,-91.82715652,0.0001847,2]
[379911900,1755438851847,-155.47260033,0.0001847,2]
[379911903,1755438876561,-192.92989737,0.00018471,2]
[379911904,1755438878003,-235.9052996,0.00018471,2]
[379911905,1755438879523,-289.84589941,0.00018471,2]
[379911906,1755438881666,-284.23104358,0.00018471,2]
[379911907,1755438890526,-300.0,0.00018471,2]
[379911908,1755438894863,-170.5846242,0.00018471,2]
[379911909,1755438903243,-164.67628071,0.0001847,2]
[379911913,1755438905930,-135.32371929,0.0001847,2]
[379911914,1755438905957,-149.65181476,0.0001847,2]
[379911915,1755438908093,-152.3548301,0.00018285,2]
[379911916,1755438908151,-111.14864635,0.0001847,2]
[379911917,1755438910259,-7.19953889,0.0001847,2]
[379911918,1755438910283,-278.96381286,0.00018471,2]
[379911919,1755438918667,-166.40630692,0.00018471,2]
[379911920,1755438935687,-151.90017713,0.0001847,2]
[379911921,1755438958134,-151.90456186,0.0001847,2]
[379911922,1755438982935,-163.912698,0.0001847,2]
[379911923,1755438986020,-151.90456186,0.0001847,2]
[379911924,1755438991332,-450.16044272,0.0001847,2]
[379911925,1755438993259,-130.21755843,0.0001847,2]
[379911926,1755438993285,-118.12781331,0.0001847,2]
[379911927,1755438994786,-181.87218669,0.0001847,2]
[379911928,1755438994811,-244.1093505,0.00018471,2]
[379911929,1755439003122,-151.15445482,0.00018471,2]
[379911930,1755439004728,-454.96180776,0.00018471,2]
[379911931,1755439006176,-166.0,0.0001847,2]
[379911932,1755439006201,-27.97248758,0.00018471,2]
[379911933,1755439008192,-298.39935397,0.00018471,2]
[379911934,1755439009734,-172.98712296,0.00018471,2]
[379911935,1755439012955,-230.33800327,0.00018471,2]
[379911936,1755439015578,-225.63515505,0.00018471,2]
[379911937,1755439017652,-217.71,0.00018471,2]
[379911938,1755439020888,-170.85901888,0.00018471,2]
[379911939,1755439023450,-175.48223957,0.00018471,2]
[379911940,1755439024965,-154.08709537,0.0001847,2]
[379911941,1755439027032,-145.91290463,0.0001847,2]
[379911942,1755439027058,-45.61237672,0.00018471,2]
[379911943,1755439029597,-349.90341106,0.00018471,2]
[379911944,1755439032479,-197.59942239,0.00018471,2]
[379911946,1755439034548,-158.8399593,0.00018471,2]
[379911947,1755439036506,-322.46776043,0.00018471,2]
[379911948,1755439036613,5146.96813132,0.00017516,2]
[379911949,1755439036634,4853.03186868,0.00017516,2]
[379911950,1755439038552,-222.73632228,0.00018471,2]
[379911951,1755439041216,-153.37255594,0.00018471,2]
[379911952,1755439044899,-165.026036,0.00018471,2]
[379911953,1755439047825,-237.87766997,0.00018471,2]
[379911954,1755439050424,-162.8967231,0.00018471,2]
[379911955,1755439053681,-140.14936564,0.00018471,2]
[379911956,1755439053708,-34.62988022,0.00018471,2]
[379911957,1755439053734,-86.34464801,0.00018471,2]
[379911958,1755439057345,-217.00623575,0.00018371,2]
[379911959,1755439057368,-2.60751362,0.00018471,2]
[379911960,1755439059478,-165.026036,0.00018371,2]
[379911961,1755439060960,-51.98019972,0.00018371,2]
[379911962,1755439060984,-143.43529465,0.00018372,2]
[379911963,1755439062681,-73.57094107,0.00018372,2]
[379911964,1755439062706,-111.59970553,0.00018372,2]
[379911965,1755439064186,-105.40653019,0.00018372,2]
[379911966,1755439064212,-189.07319312,0.00018372,2]
[379911967,1755439067347,-27.9330426,0.00018372,2]
[379911968,1755439067375,-292.15306825,0.00018471,2]
[379911969,1755439069455,-128.45477012,0.00018471,2]
[379911970,1755439069480,-34.113636,0.00018471,2]
[379911971,1755439072655,-235.61321157,0.00018471,2]
[379911972,1755439074724,-257.17082808,0.00018471,2]
[379911973,1755439076762,-206.91517266,0.00018471,2]
[379911974,1755439079370,-124.70715169,0.00018471,2]
[379911975,1755439079393,-200.44282062,0.00018471,2]
[379911976,1755439082276,-297.39334628,0.00018371,2]
[379911977,1755439084819,-165.35138601,0.00018371,2]
[379911978,1755439086302,-272.30576162,0.00018371,2]
[379911979,1755439088746,-284.16228573,0.00018371,2]
[379911980,1755439092070,-336.9149727,0.00018371,2]
[379911981,1755439095105,-236.02249694,0.00018371,2]
[379911982,1755439122906,-192.94,0.0001847,2]
[379912010,1755439125139,-107.06,0.0001847,2]
[379912011,1755439125165,-142.05963327,0.0001847,2]
[379912012,1755439127959,-200.0,0.0001847,2]
[379912013,1755439129464,-157.94036673,0.0001847,2]
[379912014,1755439129490,-20.72013471,0.0001847,2]
[379912022,1755439182963,-179.3206256,0.0001837,2]
[379912025,1755439183752,358.55564018,0.00017253,2]
[379912029,1755439184957,-273.64382186,0.0001837,2]
[379912030,1755439186595,-273.13212207,0.0001837,2]
[379912031,1755439210639,-393.32886962,0.0001837,2]
[379912032,1755439213626,-295.76172738,0.00018371,2]
[379912033,1755439249584,-183.06650585,0.00018196,2]
[379912034,1755439252538,-83.01916779,0.00018196,2]
[379912035,1755439252562,-140.7242219,0.00018295,2]
[379912036,1755439256339,-56.93416214,0.00018295,2]
[379912037,1755439256363,-245.20131817,0.00018295,2]
[379912038,1755439258554,-254.79868183,0.00018295,2]
[379912039,1755439258580,-124.37560255,0.00018295,2]
[379912040,1755439267828,-321.45320735,0.00018295,2]
[379912041,1755439268925,-54.1711901,0.00018295,2]
[379912042,1755439268951,-140.2472332,0.00018295,2]
[379912043,1755439282080,-249.74009846,0.00018295,2]
[379912044,1755439285266,-89.29253363,0.00018295,2]
[379912045,1755439285292,-65.55201826,0.00018295,2]
[379912046,1755439287363,-154.71658238,0.00018295,2]
[379912051,1755439290662,-242.27305288,0.00018295,2]
[379912052,1755439294218,-37.45834648,0.00018295,2]
[379912053,1755439294244,-148.93536977,0.00018295,2]
[379912054,1755439296254,-190.93571439,0.00018295,2]
[379912055,1755439298220,-207.19967592,0.00018295,2]
[379912056,1755439298247,-68.45128135,0.00018295,2]
[379912057,1755439320973,-171.73971442,0.00018295,2]
[379912058,1755439323458,-165.93516691,0.00018295,2]
[379912059,1755439327071,-93.87383732,0.00018295,2]
[379912060,1755439327095,-64.84018506,0.00018295,2]
[379912061,1755439328760,-239.5030925,0.00018295,2]
[379912062,1755439331290,-190.96017809,0.00018295,2]
[379912063,1755439355945,-183.34012979,0.00018195,2]
[379912064,1755439357385,-82.74554385,0.00018195,2]
[379912065,1755439357412,-4.69654435,0.00018295,2]
[379912066,1755439357437,-210.67799208,0.00018295,2]
[379912067,1755439361085,-156.24093166,0.00018295,2]
[379912068,1755439362581,-133.08107626,0.00018295,2]
[379912069,1755439362608,-18.07337856,0.00018295,2]
[379912070,1755439385266,-151.0,0.00018295,2]
[379912071,1755439388545,-180.18728878,0.00018295,2]
[379912072,1755439390166,-150.73933266,0.00018295,2]
[379912073,1755439390191,-87.92801463,0.00018295,2]
[379912075,1755439391710,-286.46223828,0.00018295,2]
[379912076,1755439396347,-185.67,0.00018295,2]
[379912077,1755439401014,-29.77428917,0.00018295,2]
[379912078,1755439401040,-264.9810434,0.00018295,2]
[379912079,1755439402417,-235.0189566,0.00018295,2]
[379912080,1755439402443,-0.09952197,0.00018295,2]
[379912081,1755439404784,-300.0,0.00018295,2]
[379912082,1755439408011,-187.94145689,0.00018295,2]
[379912083,1755439411799,-11.95902114,0.00018295,2]
[379912084,1755439411824,-238.65102998,0.00018295,2]
[379912085,1755439414611,-151.0,0.00018295,2]
[379912088,1755439437389,-66.28277295,0.00018295,2]
[379912089,1755439437413,-236.32388077,0.00018295,2]
[379912093,1755439439239,570.14172967,0.00017747,2]
[379912094,1755439441571,-254.82170582,0.00018295,2]
[379912095,1755439444239,-151.15445482,0.00018295,2]
[379912096,1755439447444,-148.84554518,0.00018295,2]
[379912097,1755439447467,-8.85441341,0.00018295,2]
[379912098,1755439447491,-25.61004141,0.00018296,2]
[379912099,1755439448949,-191.88637684,0.00018296,2]
[379912100,1755439452535,-22.63576807,0.00018296,2]
[379912101,1755439452558,-184.49605003,0.00018296,2]
[379912102,1755439461228,597.841205,0.00013699,2]
[379912103,1755439463606,3620.42955647,0.00018001,2]
[379912104,1755439463629,1379.57044353,0.00018001,2]
[379912105,1755439465160,349.456507,0.00017436,2]
[379912106,1755439480919,5000.0,0.00018001,2]
[379912107,1755439497736,3270.97304947,0.00018001,2]
[379912108,1755439497758,1729.02695053,0.00018001,2]
[379912109,1755439499650,1000.0,0.00017436,2]
[379912110,1755439514494,5000.0,0.00018001,2]
[379912111,1755439542955,-190.96017809,0.00018129,2]
[379912112,1755439542978,-71.40421385,0.00018195,2]
[379912113,1755439556876,776.03269524,0.00017382,2]
[379912114,1755439559777,1494.94035423,0.00017382,2]
[379912115,1755439559800,666.24932263,0.00017382,2]
[379912116,1755439561835,3842.11498108,0.00017382,2]
[379912117,1755439564236,5491.63569629,0.00017382,2]
[379912118,1755439564259,511.66896165,0.00017382,2]
[379912119,1755439566849,8636.11394872,0.00017382,2]
[379912120,1755439587433,-300.0,0.000181,2]
[379912121,1755439644135,-83.3194205,0.000181,2]
[379912122,1755439644159,-70.68117159,0.00018195,2]
[379912123,1755439760069,-262.36439194,0.00018095,2]
[379912124,1755439760090,-846.21897014,0.00018195,2]
[379912125,1755439760112,-207.90952667,0.00018295,2]
[379912131,1755439812994,-187.41557551,0.00018282,2]
[379912132,1755439815057,-266.61425613,0.00018282,2]
[379912133,1755439815082,-145.97016836,0.00018294,2]
[379912143,1755439832538,-154.02983164,0.00018294,2]
[379912144,1755439832555,-1200.0,0.00018295,2]
[379912145,1755439832564,-1200.0,0.00018295,2]
[379912146,1755439832573,-848.25,0.00018296,2]
[379912147,1755439832582,-480.0,0.00018296,2]
[379912148,1755439832592,-480.0,0.00018296,2]
[379912149,1755439832601,-975.09,0.00018296,2]
[379912150,1755439832610,-1328.54,0.00018296,2]
[379912151,1755439832620,-480.0,0.00018296,2]
[379912152,1755439832629,-2687.29,0.00018296,2]
[379912153,1755439832638,-420.0,0.00018296,2]
[379912154,1755439832647,-1067.92,0.00018296,2]
[379912155,1755439832656,-480.0,0.00018296,2]
[379912156,1755439832667,-480.0,0.00018296,2]
[379912157,1755439832676,-3207.84890648,0.0001837,2]
[379912159,1755439832686,-1082.41946661,0.0001837,2]
[379912161,1755439832695,-704.27903293,0.00018371,2]
[379912163,1755439832705,-600.0,0.00018433,2]
[379912165,1755439832714,-440.36487453,0.00018469,2]
[379912167,1755439832724,-480.0,0.00018469,2]
[379912169,1755439832733,-480.0,0.00018469,2]
[379912171,1755439832742,-480.0,0.00018469,2]
[379912173,1755439832751,-601.03991742,0.0001847,2]
[379912175,1755439832760,-480.0,0.0001847,2]
[379912177,1755439832769,-480.0,0.0001847,2]
[379912179,1755439832779,-480.0,0.0001847,2]
[379912181,1755439832788,-480.0,0.0001847,2]
[379912183,1755439832797,-480.0,0.0001847,2]
[379912184,1755439832806,-484.20618933,0.0001847,2]
[379912185,1755439832816,-480.0,0.0001847,2]
[379912187,1755439832825,-482.84420031,0.0001847,2]
[379912189,1755439832835,-482.49951752,0.0001847,2]
[379912190,1755439832844,-480.0,0.0001847,2]
[379912191,1755439832853,-596.08281684,0.0001847,2]
[379912192,1755439832863,-480.2319401,0.0001847,2]
[379912193,1755439832872,-365.19038225,0.0001847,2]
[379912194,1755439832881,-482.05012785,0.0001847,2]
[379912196,1755439832891,-566.72,0.0001847,2]
[379912198,1755439832900,-486.17208911,0.0001847,2]
[379912200,1755439832909,-463.62420042,0.0001847,2]
[379912202,1755439832919,-480.0,0.0001847,2]
[379912204,1755439832928,-564.76,0.0001847,2]
[379912206,1755439832937,-480.0,0.0001847,2]
[379912208,1755439832946,-480.0,0.0001847,2]
[379912210,1755439832955,-480.0,0.0001847,2]
[379912212,1755439832965,-460.0,0.0001847,2]
[379912213,1755439832974,-480.0,0.0001847,2]
[379912215,1755439832983,-480.0,0.0001847,2]
[379912217,1755439832993,-480.0,0.0001847,2]
[379912219,1755439833002,-480.0,0.0001847,2]
[379912220,1755439833012,-441.36017337,0.0001847,2]
[379912221,1755439833021,-480.0,0.0001847,2]
[379912222,1755439833031,-480.0,0.0001847,2]
[379912223,1755439833041,-480.0,0.0001847,2]
[379912224,1755439833050,-480.0,0.0001847,2]
[379912225,1755439833060,-480.0,0.0001847,2]
[379912226,1755439833069,-442.15785343,0.0001847,2]
[379912227,1755439833079,-480.0,0.0001847,2]
[379912228,1755439833089,-2026.1,0.0001847,2]
[379912229,1755439833099,-377.6067015,0.0001847,2]
[379912231,1755439833109,-480.0,0.0001847,2]
[379912232,1755439833119,-460.0,0.0001847,2]
[379912234,1755439833130,-445.68456223,0.0001847,2]
[379912236,1755439833139,-309.6426184,0.0001847,2]
[379912238,1755439833149,-614.56,0.0001847,2]
[379912240,1755439833159,-480.0,0.0001847,2]
[379912242,1755439833170,-628.88887363,0.0001847,2]
[379912244,1755439833179,-480.0,0.0001847,2]
[379912246,1755439833189,-480.0,0.0001847,2]
[379912248,1755439833199,-480.0,0.0001847,2]
[379912250,1755439833209,-480.0,0.0001847,2]
[379912251,1755439833219,-406.54572412,0.0001847,2]
[379912254,1755439833232,-241.50427588,0.0001847,2]
[379912256,1755439833241,-481.97187969,0.0001847,2]
[379912257,1755439833251,-500.0,0.0001847,2]
[379912258,1755439833261,-480.8074567,0.0001847,2]
[379912259,1755439833271,-442.00997107,0.0001847,2]
[379912260,1755439833280,-480.0,0.0001847,2]
[379912261,1755439833290,-484.81769494,0.0001847,2]
[379912263,1755439833299,-87.95443346,0.0001847,2]
[379912264,1755439833311,-394.97009488,0.0001847,2]
[379912265,1755439833320,-482.39056445,0.0001847,2]
[379912266,1755439833330,-480.0,0.0001847,2]
[379912267,1755439833339,-480.92363106,0.0001847,2]
[379912268,1755439833349,-799.94,0.0001847,2]
[379912269,1755439833358,-480.0,0.0001847,2]
[379912270,1755439833368,-480.0,0.0001847,2]
[379912271,1755439833377,-480.0,0.0001847,2]
[379912272,1755439833386,-480.0,0.00018471,2]
[379912273,1755439833396,-729.66,0.00018471,2]
[379912274,1755439833406,-480.0,0.00018471,2]
[379912275,1755439833416,-39.09151129,0.00018471,2]
[379912276,1755439833428,-440.90848871,0.00018471,2]
[379912277,1755439833437,-510.29,0.00018471,2]
[379912278,1755439833448,-542.44,0.00018471,2]
[379912279,1755439833460,-872.07,0.00018471,2]
[379912280,1755439833469,-480.0,0.00018471,2]
[379912281,1755439833479,-480.0,0.00018471,2]
[379912282,1755439833488,-867.03,0.00018471,2]
[379912283,1755439833498,-480.0,0.00018471,2]
[379912284,1755439833508,-516.77,0.00018471,2]
[379912285,1755439833517,-480.0,0.00018471,2]
[379912286,1755439833528,-378.7416969,0.00018471,2]
[379912341,1755439838309,-543.11,0.00018296,2]
[379912343,1755439838319,-500.0,0.00018468,2]
[379912345,1755439838328,-328.43708922,0.00018468,2]
[379912347,1755439838338,-500.0,0.00018468,2]
[379912349,1755439838347,-538.97560441,0.00018468,2]
[379912350,1755439838356,-526.49,0.0001847,2]
[379912352,1755439838366,-101.2583031,0.00018471,2]